Cogmind - Beta 16 @@@ ROGUE MODE // 2026.01.27 @ 21:21:30 Player: Merc Result: Destroyed by G-47 Trooper with Particle Gun Performance ------------- Evolutions (2) 1000 Regions Visited (4) 800 Robots Destroyed (34) 170 Value Destroyed (854) 854 Prototype IDs (4) 80 Alien Tech Used (0) 0 Bonus (0) 0 TOTAL SCORE: 2904 Bonus ------- None Cogmind --------- Core Integrity 0/550 Matter 284/300 Energy 100/100 System Corruption 0% Temperature Cool (18) Movement Core (200) Ox3 Location -8/Materials Parts ------- > --- POWER (2) -------- (None) > --- PROPULSION (2) --- (None) > --- UTILITY (4) ------ Medium Storage Unit Improved Terrain Scan Processor > --- WEAPON (3) ------- (None) > --- INVENTORY (10) --- Small Storage Unit Advanced Weight Redist. System Advanced Weight Redist. System ECM Suite High-powered Tractor Beam Peak State ------------ > --- POWER ------------ Ion Engine Light Nuclear Core > --- PROPULSION ------- Spiked Treads Armored Treads > --- UTILITY ---------- Improved Heat Sink Medium Storage Unit Improved Terrain Scan Processor ECM Suite > --- WEAPON ----------- Heavy EM Shotgun Heavy EM Shotgun Makeshift Spear > --- INVENTORY -------- Light Ion Engine Airjet Small Storage Unit Advanced Weight Redist. System Advanced Weight Redist. System Reactive Plating High-powered Tractor Beam Battle Cannon Scythe [Rating: 31] Favorites ----------- Power Ion Engine Engine Ion Engine Power Core Light Nuclear Core Propulsion Light Treads Treads Light Treads Leg Carbon-fiber Leg Utility ECM Suite Device ECM Suite Storage Small Storage Unit Processor Improved Terrain Scan Processor Weapon Grenade Launcher Energy Gun Heavy EM Shotgun Energy Cannon Subdweller Beam Cannon Ballistic Gun Light Assault Rifle Ballistic Cannon Battle Cannon Launcher Grenade Launcher Slashing Weapon Scythe Piercing Weapon Makeshift Spear Build | -11 -10 -10 -10 -8 ------- Run | Yrd Mat Min Sub Mat Slots Evolved 4 | . . . . 4 Power 1 | . . . . 1 Propulsion . | . . . . . Utility 2 | . . . . 2 Weapon 1 | . . . . 1 Parts Attached 33 | 7 2 1 3 20 Power 7 | 2 . . 1 4 Engine 4 | 2 . . 1 1 Core 3 | . . . . 3 Reactor . | . . . . . Propulsion 7 | 2 . . . 5 Treads 4 | 2 . . . 2 Leg 3 | . . . . 3 Wheel . | . . . . . Hover . | . . . . . Flight . | . . . . . Utility 8 | 1 1 . . 6 Device 4 | . 1 . . 3 Storage 3 | 1 . . . 2 Processor 1 | . . . . 1 Hackware . | . . . . . Protection . | . . . . . Artifact . | . . . . . Weapon 11 | 2 1 1 2 5 Energy Gun 3 | 1 . . . 2 Energy Cannon 1 | . . . 1 . Ballistic Gun 1 | 1 . . . . Ballistic Cannon 3 | . . 1 1 1 Launcher 1 | . 1 . . . Special Weapon . | . . . . . Impact Weapon . | . . . . . Slashing Weapon 1 | . . . . 1 Piercing Weapon 1 | . . . . 1 Special Melee Weapon . | . . . . . Unidentified Prototypes 1 | . . . . 1 Parts Lost 20 | . . . . 20 Power 6 | . . . . 6 Propulsion 6 | . . . . 6 Utility 2 | . . . . 2 Weapon 6 | . . . . 6 Highest Loss Streak 7 | . . . . 7 To Critical Strikes 1 | . . . . 1 Average Backups 5 | . 2 3 6 5 Power . | . 1 1 1 . Propulsion . | . . 1 1 . Utility 1 | . . . . 3 Weapon 2 | . . 1 3 1 Tool/Special . | . . . . . Unused Backups 7 | . . . 3 4 Power . | . . . . . Propulsion 2 | . . . 1 1 Utility 4 | . . . 1 3 Weapon 1 | . . . 1 . Tool/Special . | . . . . . Average Slot Usage (%) 95 | . 95 100 100 87 Engine 11 | . 14 14 14 7 Core 1 | . . . . 5 Treads 23 | . 28 28 28 14 Device 14 | . 9 14 14 16 Storage 12 | . 14 14 14 10 Processor 2 | . . . . 7 Energy Gun 1 | . 1 . . 4 Energy Cannon 4 | . . . 6 3 Ballistic Gun 1 | . 14 4 . . Ballistic Cannon 6 | . . 9 7 5 Launcher 9 | . 12 14 14 . Slashing Weapon 1 | . . . . 3 Piercing Weapon 1 | . . . . 5 Peak Build Rating 31 | 6 7 7 10 31 Average Rating 12 | 5 6 7 8 23 On Entrance 5 | . 6 7 7 9 Avg Prop Armor Cover (%) 15 | . . . . 15 Naked Turns . | . . . . . Heaviest Build 36 | 13 16 18 23 36 Greatest Support 40 | 40 40 40 40 40 Greatest Overweight (x) 5 | 2 . . . 5 Average Overweight (x) . | . . . . . Largest Inventory Capacity 10 | 8 8 8 8 10 Average Capacity 8 | 7 8 8 8 9 Most Carried 10 | 1 3 4 8 10 Average Carried 5 | . 2 3 6 5 Final Capacity 10 | 8 8 8 8 10 Final Carried 6 | 1 3 4 6 5 Class Distribution -------------------- 97% | Mutant Dominant Class ---------------- Mutant | -10/Materials Mutant | -10/Mines Mutant | -10/Subcaves Mutant | -8/Materials Resources | -11 -10 -10 -10 -8 ----------- Run | Yrd Mat Min Sub Mat Matter Collected 1080 | 200 . 45 201 634 Remotely 476 | . . . . 476 Salvage Created 938 | . . . 168 770 Parts 66 | . . . 16 50 Haulers Intercepted 1 | . . . . 1 Recyclers Shooed . | . . . . . Parts Field Recycled . | . . . . . Retrieved Matter . | . . . . . Parts Self-Destructed 9 | . . . 9 . Prevented . | . . . . . Parts Restored . | . . . . . Kills | -11 -10 -10 -10 -8 ------- Run | Yrd Mat Min Sub Mat Combat Hostiles Destroyed 25 | . . . 7 18 Melee 12 | . . . . 12 Guns 2 | . . . . 2 Cannons 5 | . . . 1 4 AOE 6 | . . . 6 . Classes Destroyed 11 | . . . 3 8 Worker 4 | . . . . 4 Builder 1 | . . . . 1 Tunneler 1 | . . . . 1 Hauler 1 | . . . . 1 Mechanic 1 | . . . . 1 Watcher 1 | . . . . 1 Swarmer 11 | . . . 1 10 Grunt 4 | . . . . 4 Sentry 3 | . . . 1 2 Hunter 2 | . . . . 2 Subdweller 5 | . . . 5 . Best Kill Streak 4 | . . . 2 4 Combat Bots Only 4 | . . . 2 4 Max Kills in Single Turn 2 | . . . 2 2 Gunslinging . | . . . . . Exploded 2 | . . . 2 . Melee 1 | . . . . 1 Uniques/NPCs Destroyed . | . . . . . Combat | -11 -10 -10 -10 -8 -------- Run | Yrd Mat Min Sub Mat Hostile Shots Fired 340 | . 3 . 29 308 Missed 110 | . . . 12 98 Hits 230 | . 3 . 17 210 Projectile 230 | . 3 . 17 210 Critical Strikes 5 | . . . . 5 Damage Taken 2829 | . 48 4 308 2469 Core 626 | . 18 . 56 552 Absorbed by Shields . | . . . . . Regen/Repaired (Parts) 58 | . . . . 58 Core Remaining (%) 85 | 100 . . 70 . Volleys Fired 82 | 1 . . 20 61 Largest 2 | 1 . . 2 2 Hottest 113 | 20 . . 110 113 Shots Fired 110 | 1 . . 34 75 Gun 8 | 1 . . . 7 Cannon 87 | . . . 19 68 Launcher 15 | . . . 15 . Special . | . . . . . Kinetic 61 | 1 . . 17 43 Thermal 27 | . . . 2 25 Explosive 15 | . . . 15 . Electromagnetic 7 | . . . . 7 Robot Hit Streak 10 | 1 . . 10 7 Robot Miss Streak 5 | . . . 2 5 Penetration Max . | . . . . . Secondary Targets . | . . . . . Shots Hit Robots 83 | 1 . . 19 63 Core Hits 40 | . . . 10 30 Critical Kills . | . . . . . Critical Parts Destroyed . | . . . . . Critical Strikes 6 | . . . . 6 Blast 3 | . . . . 3 Sever 2 | . . . . 2 Impale 1 | . . . . 1 Melee Attacks 43 | . . . . 43 Impact . | . . . . . Slashing 24 | . . . . 24 Piercing 19 | . . . . 19 Sneak Attacks 2 | . . . . 2 Combat Hostiles . | . . . . . Follow-up Attacks 3 | . . . . 3 Damage Inflicted 2491 | 8 . 10 584 1889 Guns 66 | 8 . . . 58 Cannons 949 | . . . 230 719 Explosions 542 | . . . 354 188 Melee 922 | . . . . 922 Ramming 12 | . . 10 . 2 Kinetic 568 | 8 . . 172 388 Thermal 577 | . . . 58 519 Explosive 354 | . . . 354 . Electromagnetic 58 | . . . . 58 Impact . | . . . . . Slashing 500 | . . . . 500 Piercing 422 | . . . . 422 Highest Corruption . | . . . . . Average Corruption . | . . . . . Corruption Purged . | . . . . . Corruption Blocked . | . . . . . Overload Shots . | . . . . . Overflow Damage 155 | . . . 7 148 Projectiles 18 | . . . . 18 Explosions 137 | . . . 7 130 Melee . | . . . . . Knockbacks 4 | . . . . 4 Impact . | . . . . . Kinetic 4 | . . . . 4 Secondary . | . . . . . Self-Inflicted Damage 165 | . . . 5 160 Shots 3 | . . . 1 2 Rammed 7 | . . 2 . 5 Targets Rammed 7 | . . 2 . 5 Kicked . | . . . . . Crushed . | . . . . . Highest Temperature 322 | . . . . 322 Average Temperature 86 | . . . . 86 Received Heat Transfer 543 | . 27 . 48 468 Siege Activations . | . . . . . Martial Activations . | . . . . . Shielding Activations . | . . . . . Robots Disrupted . | . . . . . Combat Hostiles . | . . . . . Robots Corrupted . | . . . . . Combat Hostiles . | . . . . . Parts Fried . | . . . . . Impact Corruptions . | . . . . . Robots Melted . | . . . . . Combat Hostiles . | . . . . . Parts Melted 1 | . . . . 1 Heat Transferred 618 | . . . 74 544 Parts Sabotaged . | . . . . . Parts Stolen . | . . . . . Parts Stripped . | . . . . . Power Chain Reactions . | . . . . . Alert | -11 -10 -10 -10 -8 ------- Run | Yrd Mat Min Sub Mat Maximum Alert Level . | . . . . . Low Security (%) 100 | 100 100 100 . 100 Level 1 . | . . . . . Level 2 . | . . . . . Level 3 . | . . . . . Level 4 . | . . . . . Level 5 . | . . . . . High Security . | . . . . . Max Security . | . . . . . Peak Influence 130 | . 15 . . 130 Initial . | . . . . . Average 17 | . 1 . . 32 Influence Increases 679 | . 20 . 44 615 Destroy 0b10 Robot/C 400 | . . . 40 360 Destroy 0b10 Robot/NC 45 | . . . . 45 Destroy Leader 94 | . . . . 94 Allied During Kill 4 | . . . 4 . Successful Hack 13 | . 5 . . 8 Disable Machine 60 | . . . . 60 Destroy Structure 48 | . . . . 48 Partial Spotted 15 | . 15 . . . Influence Decreases 617 | . 20 . 44 553 Time Decay 435 | . 20 . 44 371 Lost Part 170 | . . . . 170 Purge Threat 12 | . . . . 12 Squads Dispatched 7 | . 3 . . 4 Investigation 4 | . 1 . . 3 Extermination . | . . . . . Reinforcement 2 | . 2 . . . Assault . | . . . . . Garrison 1 | . . . . 1 Intercept . | . . . . . Searches Triggered . | . . . . . Construction Impeded . | . . . . . Haulers Reinforced . | . . . . . Active Scanning Responses . | . . . . . Cargo Convoy Interrupts . | . . . . . Stealth | -11 -10 -10 -10 -8 --------- Run | Yrd Mat Min Sub Mat Distress Signals 1 | . . . . 1 Communications Jammed . | . . . . . Distress Signals . | . . . . . Times Spotted 59 | . 5 . 10 44 Peak Tracking Total 7 | . 3 . 2 7 Tactical Retreats 4 | . 1 . . 3 ECM-based Alert Blocks 10 | . 2 . . 8 Traps | -11 -10 -10 -10 -8 ------- Run | Yrd Mat Min Sub Mat Traps Triggered 3 | . 1 . . 2 Indirectly . | . . . . . Trap Hack Attempts . | . . . . . Triggered . | . . . . . Disarmed . | . . . . . Reprogrammed . | . . . . . Reused . | . . . . . Traps Extracted . | . . . . . Installed . | . . . . . Triggered . | . . . . . Machines | -11 -10 -10 -10 -8 ---------- Run | Yrd Mat Min Sub Mat Machines Disabled 4 | . . . . 4 Max in Single Turn 3 | . . . . 3 Machines Repaired . | . . . . . Machines Dismantled . | . . . . . Machines Sabotaged . | . . . . . Overloaded Fab Kills . | . . . . . Hacking | -11 -10 -10 -10 -8 --------- Run | Yrd Mat Min Sub Mat Machines Accessed 6 | . 2 1 . 3 Terminals 3 | . 2 . . 1 Fabricators . | . . . . . Repair Stations 1 | . . . . 1 Recycling Units 1 | . . . . 1 Scanalyzers . | . . . . . Garrison Access . | . . . . . Total Hacks 16 | . 4 1 . 11 Successful 8 | . 3 1 . 4 Failed 8 | . 1 . . 7 Catastrophic . | . . . . . Database Lockouts . | . . . . . Manual . | . . . . . Terminals 8 | . 4 . . 4 Fabricators . | . . . . . Repair Stations 4 | . . . . 4 Recycling Units 3 | . . . . 3 Scanalyzers . | . . . . . Garrison Access . | . . . . . Terminal Hacks 6 | . 3 1 . 2 Record 1 | . 1 . . . Prototype ID Bank 1 | . 1 . . . Open Door 1 | . . 1 . . Unreport Threat 1 | . . . . 1 Recall Reinforcements 1 | . . . . 1 Hauler Manifests 1 | . 1 . . . Fabricator Hacks . | . . . . . Repair Station Hacks 2 | . . . . 2 Scan Component 1 | . . . . 1 Repair 1 | . . . . 1 Recycling Unit Hacks . | . . . . . Scanalyzer . | . . . . . Garrison Access Hacks . | . . . . . Unauthorized Hacks . | . . . . . Terminals . | . . . . . Fabricators . | . . . . . Repair Stations . | . . . . . Recycling Units . | . . . . . Scanalyzers . | . . . . . Garrison Access . | . . . . . Data Cores Recovered . | . . . . . Used . | . . . . . Hacking Detections 3 | . 1 . . 2 Full Trace Events 2 | . . . . 2 Feedback Events . | . . . . . Feedback Blocked . | . . . . . Robot Schematics Acquired . | . . . . . Robots Built . | . . . . . Authchips . | . . . . . Time . | . . . . . Total Robot Build Rating . | . . . . . Part Schematics Acquired . | . . . . . Parts Built . | . . . . . Authchips . | . . . . . Time . | . . . . . Total Part Build Rating . | . . . . . Part Studies Acquired . | . . . . . Parts Repaired 1 | . . . . 1 Time 44 | . . . . 44 Parts Recycled . | . . . . . Recycled Matter . | . . . . . Retrieved Matter . | . . . . . Retrieved Components . | . . . . . Parts Scanalyzed . | . . . . . Part Schematics Acquired . | . . . . . Parts Damaged . | . . . . . Bothacking | -11 -10 -10 -10 -8 ------------ Run | Yrd Mat Min Sub Mat Used RIF Installer . | . . . . . Robots Hacked . | . . . . . Non-combat . | . . . . . Combat . | . . . . . Robot Hacks Applied . | . . . . . Relay Couplers Released . | . . . . . Fabnet Peak Effective % . | . . . . . Robots Rewired . | . . . . . Allies Hacked . | . . . . . Hacks Repelled . | . . . . . Allies | -11 -10 -10 -10 -8 -------- Run | Yrd Mat Min Sub Mat Total Allies 2 | . . 2 . . Largest Group 2 | . . 2 2 . Highest-Rated Group 42 | . . 42 42 . Highest-Rated Ally 31 | . . 31 31 . Total Orders . | . . . . . Ally Attacks 11 | . . . 11 . Total Damage 113 | . . . 113 . Kills . | . . . . . Allies Corrupted . | . . . . . Allies Melted . | . . . . . Intel | -11 -10 -10 -10 -8 ------- Run | Yrd Mat Min Sub Mat Active Infowar (turns) 4127 | . 168 785 2063 1111 Optics 167 | . . . . 167 ECM 4127 | . 168 785 2063 1111 Robot Analysis Total . | . . . . . Derelict Logs Recovered 2 | . . 2 . . Drone Launches . | . . . . . Drone Recoveries . | . . . . . Exploration | -11 -10 -10 -10 -8 ------------- Run | Yrd Mat Min Sub Mat Turns Passed 4628 | 120 239 785 2063 1421 Spaces Moved 2530 | 71 123 476 1216 644 Core 12 | 10 . . . 2 Treads 2385 | 61 123 476 1216 509 Legs 133 | . . . . 133 Wheels . | . . . . . Hover . | . . . . . Flight . | . . . . . Fastest Speed 50 | 50 160 160 160 120 Average Speed 159 | 153 160 160 160 160 Slowest Speed 300 | 160 160 160 160 300 Overloaded Moves . | . . . . . Propulsion Burnouts . | . . . . . Robots Hopped . | . . . . . Potential Cave-ins . | . . . . . Cave-ins Triggered . | . . . . . Exploration Rate (%) 48 | 6 23 93 63 56 Regions Visited 4 Branch Regions 2 Pre-discovered Areas 1 | . . . 1 . Known Exits Taken . | . . . . . Unknown Exits Taken 4 | 1 1 1 1 . Scrap Searched 1 | . . 1 . . Spaces Dug . | . . . . . Terrain Destroyed 111 | . . . 63 48 Melee . | . . . . . Projectile 14 | . . . . 14 AOE 97 | . . . 63 34 Terrain Rammed . | . . . . . Walls Destroyed . | . . . . . Machines Disabled . | . . . . . Actions | -11 -10 -10 -10 -8 --------- Run | Yrd Mat Min Sub Mat Total 2935 | 78 165 498 1301 893 Wait 175 | . 37 19 30 89 Move 2526 | 70 122 475 1215 644 Hop . | . . . . . Pick Up 31 | . 3 1 8 19 Fast Attach 9 | 6 1 . . 2 Attach 19 | . . . 1 18 Detach . | . . . . . Swap 28 | 1 1 1 15 10 Drop 18 | . 1 . 12 5 Fire 82 | 1 . . 20 61 Melee 40 | . . . . 40 Ram 4 | . . . . 4 Kick . | . . . . . Crush 3 | . . 2 . 1 Escape Stasis . | . . . . . Rewire . | . . . . . Trap . | . . . . . Miscellaneous . | . . . . . Route ------- -11/Scrapyard -10/Materials -10/Mines (discovered 3 exits: [*Mat x2] / [*Sub]) -10/Subcaves -8/Materials (discovered 1 exit: Fac) History --------- Turn | Location | Event 11 | -11/Scrapyard | Discovered new exit (range 16) 121 | -11/Scrapyard | Entered Materials 308 | -10/Materials | Build established: Mutant 339 | -10/Materials | Discovered new exit (range 7) 360 | -10/Materials | Entered Mines 399 | -10/Mines | Discovered new exit (range 12) 412 | -10/Mines | Learned 4 Materials zone layouts 925 | -10/Mines | Discovered new exit (range 5) 1006 | -10/Mines | Met a Derelict who couldn't figure out how to use a Trap Extractor 1111 | -10/Mines | Discovered new exit (range 13) 1145 | -10/Mines | Entered Subcaves 1145 | -10/Subcaves | Accompanied by 2 allies 1150 | -10/Subcaves | Led the pair of lost Derelicts to an unsafe place 1404 | -10/Subcaves | A swath of the cavern ceiling suddenly collapsed 1593 | -10/Subcaves | Shifting Twisted Machinery released Sub. Laser 1595 | -10/Subcaves | Shifting Twisted Machinery released Sub. Machine Gun 2041 | -10/Subcaves | Shifting Twisted Machinery released Battle Cannon 2195 | -10/Subcaves | Shifting Twisted Machinery released Sub. Beam Cannon 2957 | -10/Subcaves | Learned location of Zion (-7) 2957 | -10/Subcaves | Met a Zionite searching for "candidates" 3174 | -10/Subcaves | Discovered new exit (range 10) 3200 | -10/Subcaves | Ambushed by Subdwellers from Twisted Machinery 3208 | -10/Subcaves | Entered Materials 3208 | -8/Materials | Evolved 4 slots: Power x1, Utility x2, Weapon x1 3209 | -8/Materials | Identified exit to Factory 3470 | -8/Materials | Lost 3 parts (1p2n) 3483 | -8/Materials | Garrison activated, responded to threat 3762 | -8/Materials | Lost 3 parts (2p1w) 3851 | -8/Materials | Repaired Broken Sub. Beam Cannon? 4267 | -8/Materials | Core integrity fell below 50% 4365 | -8/Materials | Lost 5 parts (3p1n1w) 4616 | -8/Materials | Core integrity fell below 20% 4629 | -8/Materials | Destroyed by G-47 Trooper with Particle Gun Last Messages --------------- Rifle. 04605_ Critical hit (Destroy). 04605_ Carbon-fiber Leg destroyed. 04606_ S-10 Pest destroyed. 04609_ Critical hit (Burn: +37). 04612_ Battle Cannon destroyed. 04613_ M-13 Machinist repairs G-47 Trooper. 04616_ Mak. Spear follow-up attack on G-47 Trooper. 04617_ Carbon-fiber Leg destroyed. 04618_ Scythe destroyed. 04621_ Slammed into G-47 Trooper. 04621_ Imp. Heat Sink destroyed. 04622_ Acquired 16 matter. 04623_ M-13 Machinist repairs Y-45 Defender Lgt. Armor Plating. 04623_ Mak. Spear destroyed. 04623_ Slammed into G-47 Trooper. 04623_ Com. Battery destroyed. 04625_ Slammed into G-47 Trooper. Map ----- +----------------------------------------------------+ | | | ???????????????????????????????????????????? | | ???????????????????????????????????????????? | | ???????????????????????????????????????????? | | ???????????????????????????????????????????? | | ???????????????????????????????????????????? | | ???????????????????????????????????????????? | | ???????????????????????????????????????????? | | ???????????????????????????????????????????? | | ???????????????????????????????????????????? | | ???????????????????????????????????????????? | | ???????????????????????????????????????????? | | ???????????????????????????????????????????? | | ???????????????????????????????????????????? | | ???????????????????????????????????????????? | | ???????????????????????????????????????????? | | ???????????????????????????????????????????? | | ???????????????????????????????????????????? | | ???????????????????????????????????????????? | | ???????????????????????????????????????????? | | ???????????????????????????????????????????? | | ?????????????????????????????#?????????????? | | ???????????????????????????? #?????????????? | | ?????????????????#####????? #?????????????? | | ?????????""" ##### ! ##### #?????????????? | | ???????? + [g=@ #?????????????? | | ????# """ ##### Ytg #?????????????? | | ###?# """ #???# ##/###+#?????????????? | | ! #?# """ #???######%m= #?????????????? | | ! #?# #????????#* #?????????????? | | #?#####+##########??#! #?????????????? | | ##### #??# #?????????????? | | #### #?????????????? | | " """ + #?????????????? | | ]] """ Y" ###########?????????????? | | ] """ """ #???????????????????????? | | ] """ #???????????????????????? | | "" #???????????????????????? | | """ #???????????????????????? | | """ "" #???????????????????????? | | """ """ #???????????????????????? | | """ " #???????????????????????? | | #???????????????????????? | | #???????????????????????? | | ###+### " " #???????????????????????? | | ## # """ """ #???????????????????????? | | ?# # """ """ #???????????????????????? | | ?# # """ "" #???????????????????????? | | ## # "" "" #???????????????????????? | | + # """ """ #???????????????????????? | +----------------------------------------------------+ Best States ------------- Heat Dissipation 45 Energy Generation 23 Energy Capacity 310 Matter Stores 300 Matter Capacity 300 Sight Range 21 Terrain Scan Density 110 ECM Strength 1 Evasion (%) 55 Recoil Reduction 2 Item Schematics ----------------- None Robot Schematics ------------------ None Fabricated ------------ Nothing Repaired ---------- Sub. Beam Cannon | 42% | -8/Materials | Broken Studied --------- None Alien Tech Used ----------------- None Achievements -------------- Everything Is Under Control Resistances Are Futile Risk Taker Shopping List Troublemaker Use The Force Challenges ------------ None Game ------ Seed RingFlightLauncher Manual? 0 Play Time 00:49:29 Cumulative 2.9 hours Start 2026.01.27 @ 20:16:24 End 2026.01.27 @ 21:21:30 Sessions 1 Manual Loads 0 Difficulty Rogue Special Mode None Game No. 4 Rogue 4 Adventurer 0 Explorer 0 Win Type - Total 0 Types 0/0/0/0/0/0/0/0/0/0 Lore% 0 Gallery% 5 Achievement% 5 Wizard Run 0 Options --------- Layout 1 ASCII 0 Keyboard 0 Movement Mouse Keybinds 1 Fullscreen 2 Font 24/Smallcaps Map View 50x35 Zoom Use 0% Tactical HUD 1 Map Filters NONE Filters NONE Steam 1 RUN: 6c672ab6-8a36-4853-b3e8-7a017ff8c1ef